Cogmind - Beta 14 @@@ ROGUE MODE // 2024.11.27 @ 03:43:24 Player: celerysam Result: Self-destructed Performance ------------- Evolutions (1) 500 Regions Visited (2) 400 Robots Destroyed (5) 25 Value Destroyed (177) 177 Prototype IDs (0) 0 Alien Tech Used (0) 0 Bonus (0) 0 TOTAL SCORE: 1102 Bonus ------- None Cogmind --------- Core Integrity 368/400 Matter 223/300 Energy 29/100 System Corruption 0% Temperature Warm (129) Movement Core (250) Ox4 Location -9/Materials Parts ------- > --- POWER (1) -------- (None) > --- PROPULSION (2) --- (None) > --- UTILITY (2) ------ Small Storage Unit Improved Targeting Computer > --- WEAPON (4) ------- Medium Laser Medium Laser Light EM Pulse Cannon Assault Rifle > --- INVENTORY (8) ---- Ion Engine Ion Engine Light Treads Light Treads Wheel Heavy Assault Rifle Datajack Peak State ------------ > --- POWER ------------ Ion Engine > --- PROPULSION ------- Aluminum Leg Aluminum Leg > --- UTILITY ---------- Small Storage Unit Improved Targeting Computer > --- WEAPON ----------- Medium Laser Medium Laser Light EM Pulse Cannon Assault Rifle > --- INVENTORY -------- Ion Engine Ion Engine Light Treads Light Treads Wheel Datajack [Rating: 11] Favorites ----------- Power Ion Engine Engine Ion Engine Propulsion Aluminum Leg Leg Aluminum Leg Utility Small Storage Unit Storage Small Storage Unit Processor Improved Targeting Computer Weapon Medium Laser Energy Gun Medium Laser Energy Cannon Light EM Pulse Cannon Ballistic Gun Assault Rifle Build | -11 -10 -9 ------- Run | Yrd Mat Mat Slots Evolved 2 | . . 2 Power . | . . . Propulsion . | . . . Utility . | . . . Weapon 2 | . . 2 Parts Attached 12 | 6 2 4 Power 1 | 1 . . Engine 1 | 1 . . Core . | . . . Reactor . | . . . Propulsion 4 | 2 1 1 Treads . | . . . Leg 4 | 2 1 1 Wheel . | . . . Hover . | . . . Flight . | . . . Utility 2 | 1 . 1 Device . | . . . Storage 1 | 1 . . Processor 1 | . . 1 Hackware . | . . . Protection . | . . . Artifact . | . . . Weapon 5 | 2 1 2 Energy Gun 2 | 1 . 1 Energy Cannon 1 | . . 1 Ballistic Gun 2 | 1 1 . Ballistic Cannon . | . . . Launcher . | . . . Special Weapon . | . . . Impact Weapon . | . . . Slashing Weapon . | . . . Piercing Weapon . | . . . Special Melee Weapon . | . . . Unidentified Prototypes . | . . . Parts Lost 3 | . . 3 Power 1 | . . 1 Propulsion 2 | . . 2 Utility . | . . . Weapon . | . . . Highest Loss Streak 2 | . . 2 To Critical Strikes . | . . . Average Slot Usage (%) 79 | . 83 77 Engine 7 | . 14 2 Leg 18 | . 27 12 Storage 12 | . 14 11 Processor 5 | . . 9 Energy Gun 17 | . 14 20 Energy Cannon 6 | . . 11 Ballistic Gun 11 | . 13 11 Peak Build Rating 11 | 6 6 11 Average Rating 6 | 3 5 8 On Entrance 3 | . 6 5 Naked Turns . | . . . Heaviest Build 20 | 14 14 20 Greatest Support 20 | 20 20 20 Greatest Overweight (x) 3 | 1 3 1 Average Overweight (x) . | . . . Largest Inventory Capacity 8 | 8 8 8 Average Capacity 7 | 5 8 8 Most Carried 8 | 5 8 8 Average Carried 6 | 4 5 6 Final Capacity 8 | 8 8 8 Final Carried 8 | 5 8 7 Class Distribution -------------------- 51% | Gunner 48% | Mutant Dominant Class ---------------- Mutant | -10/Materials Gunner | -9/Materials Resources | -11 -10 -9 ----------- Run | Yrd Mat Mat Matter Collected 273 | 203 14 56 Remotely . | . . . Salvage Created 174 | . 118 56 Parts 9 | . 6 3 Haulers Intercepted . | . . . Recyclers Shooed . | . . . Parts Field Recycled . | . . . Retrieved Matter . | . . . Parts Self-Destructed . | . . . Prevented . | . . . Kills | -11 -10 -9 ------- Run | Yrd Mat Mat Combat Hostiles Destroyed 5 | . 4 1 Guns 4 | . 4 . Cannons 1 | . . 1 Classes Destroyed 3 | . 2 1 Swarmer 1 | . 1 . Grunt 3 | . 3 . Sentry 1 | . . 1 Best Kill Streak 3 | . 3 1 Combat Bots Only 3 | . 3 1 Max Kills in Single Turn 1 | . 1 1 Gunslinging . | . . . Exploded . | . . . Melee . | . . . Uniques/NPCs Destroyed . | . . . Combat | -11 -10 -9 -------- Run | Yrd Mat Mat Hostile Shots Fired 60 | . 36 24 Missed 19 | . 12 7 Damage Taken 527 | . 291 236 Core 54 | . 22 32 Absorbed by Shields . | . . . Core Remaining (%) 95 | 100 91 . Volleys Fired 15 | . 10 5 Largest 4 | . 2 4 Hottest 176 | . 70 176 Shots Fired 34 | . 20 14 Gun 29 | . 20 9 Cannon 5 | . . 5 Launcher . | . . . Special . | . . . Kinetic 15 | . 10 5 Thermal 14 | . 10 4 Explosive . | . . . Electromagnetic 5 | . . 5 Robot Hit Streak 4 | . 3 4 Robot Miss Streak 3 | . 2 3 Penetration Max . | . . . Secondary Targets 1 | . 1 . Max Gunslinging Chain 1 | . 1 . Shots Hit Robots 18 | . 10 8 Core Hits 9 | . 6 3 Critical Kills . | . . . Critical Parts Destroyed . | . . . Critical Strikes . | . . . Melee Attacks . | . . . Impact . | . . . Slashing . | . . . Piercing . | . . . Sneak Attacks . | . . . Combat Hostiles . | . . . Follow-up Attacks . | . . . Damage Inflicted 249 | . 140 109 Guns 212 | . 140 72 Cannons 37 | . . 37 Explosions . | . . . Melee . | . . . Ramming . | . . . Kinetic 112 | . 66 46 Thermal 100 | . 74 26 Explosive . | . . . Electromagnetic 37 | . . 37 Impact . | . . . Slashing . | . . . Piercing . | . . . Highest Corruption . | . . . Average Corruption . | . . . Corruption Purged . | . . . Corruption Blocked . | . . . Overload Shots . | . . . Overflow Damage . | . . . Projectiles . | . . . Explosions . | . . . Melee . | . . . Knockbacks . | . . . Impact . | . . . Kinetic . | . . . Secondary . | . . . Self-Inflicted Damage . | . . . Shots . | . . . Rammed . | . . . Targets Rammed . | . . . Kicked . | . . . Crushed . | . . . Highest Temperature 136 | . 96 136 Average Temperature 40 | . 34 51 Received Heat Transfer 288 | . 156 132 Siege Activations . | . . . Robots Corrupted . | . . . Combat Hostiles . | . . . Parts Fried . | . . . Impact Corruptions . | . . . Robots Melted . | . . . Combat Hostiles . | . . . Parts Melted 2 | . 2 . Heat Transferred 296 | . 222 74 Parts Sabotaged . | . . . Parts Stolen . | . . . Parts Stripped . | . . . Power Chain Reactions . | . . . Alert | -11 -10 -9 ------- Run | Yrd Mat Mat Peak Influence 190 | . 190 149 Initial 79 | . . 79 Average 80 | . 92 98 Maximum Alert Level . | . . . Low Security (%) 100 | 100 100 100 Level 1 . | . . . Level 2 . | . . . Level 3 . | . . . Level 4 . | . . . Level 5 . | . . . High Security . | . . . Max Security . | . . . Squads Dispatched 2 | . 2 . Investigation . | . . . Extermination . | . . . Reinforcement 2 | . 2 . Assault . | . . . Garrison . | . . . Intercept . | . . . Searches Triggered . | . . . Construction Impeded . | . . . Haulers Reinforced . | . . . Active Scanning Responses . | . . . Cargo Convoy Interrupts . | . . . Stealth | -11 -10 -9 --------- Run | Yrd Mat Mat Distress Signals 1 | . 1 . Communications Jammed . | . . . Distress Signals . | . . . Times Spotted 16 | . 11 5 Peak Tracking Total 7 | . 7 4 Tactical Retreats 1 | . 1 . Traps | -11 -10 -9 ------- Run | Yrd Mat Mat Traps Triggered 1 | . 1 . Indirectly . | . . . Trap Hack Attempts . | . . . Triggered . | . . . Disarmed . | . . . Reprogrammed . | . . . Reused . | . . . Traps Extracted . | . . . Installed . | . . . Triggered . | . . . Machines | -11 -10 -9 ---------- Run | Yrd Mat Mat Machines Disabled 2 | . . 2 Max in Single Turn 1 | . . 1 Machines Repaired . | . . . Machines Dismantled . | . . . Machines Sabotaged . | . . . Overloaded Fab Kills . | . . . Hacking | -11 -10 -9 --------- Run | Yrd Mat Mat Machines Accessed 1 | . . 1 Terminals 1 | . . 1 Fabricators . | . . . Repair Stations . | . . . Recycling Units . | . . . Scanalyzers . | . . . Garrison Access . | . . . Total Hacks 1 | . . 1 Successful . | . . . Failed 1 | . . 1 Catastrophic . | . . . Database Lockouts . | . . . Manual . | . . . Terminals 1 | . . 1 Fabricators . | . . . Repair Stations . | . . . Recycling Units . | . . . Scanalyzers . | . . . Garrison Access . | . . . Terminal Hacks . | . . . Fabricator Hacks . | . . . Repair Station Hacks . | . . . Recycling Unit Hacks . | . . . Scanalyzer . | . . . Garrison Access Hacks . | . . . Unauthorized Hacks . | . . . Terminals . | . . . Fabricators . | . . . Repair Stations . | . . . Recycling Units . | . . . Scanalyzers . | . . . Garrison Access . | . . . Data Cores Recovered . | . . . Used . | . . . Hacking Detections . | . . . Full Trace Events . | . . . Feedback Events . | . . . Feedback Blocked . | . . . Robot Schematics Acquired . | . . . Robots Built . | . . . Authchips . | . . . Time . | . . . Total Robot Build Rating . | . . . Part Schematics Acquired . | . . . Parts Built . | . . . Authchips . | . . . Time . | . . . Total Part Build Rating . | . . . Parts Repaired . | . . . Time . | . . . Parts Recycled . | . . . Recycled Matter . | . . . Retrieved Matter . | . . . Retrieved Components . | . . . Parts Scanalyzed . | . . . Part Schematics Acquired . | . . . Parts Damaged . | . . . Bothacking | -11 -10 -9 ------------ Run | Yrd Mat Mat Used RIF Installer . | . . . Robots Hacked . | . . . Non-combat . | . . . Combat . | . . . Robot Hacks Applied . | . . . Relay Couplers Released . | . . . Fabnet Peak Effective % . | . . . Robots Rewired . | . . . Allies Hacked . | . . . Hacks Repelled . | . . . Allies | -11 -10 -9 -------- Run | Yrd Mat Mat Total Allies . | . . . Largest Group . | . . . Highest-Rated Group . | . . . Highest-Rated Ally . | . . . Total Orders . | . . . Ally Attacks . | . . . Total Damage . | . . . Kills . | . . . Allies Corrupted . | . . . Allies Melted . | . . . Intel | -11 -10 -9 ------- Run | Yrd Mat Mat Robot Analysis Total . | . . . Derelict Logs Recovered . | . . . Drone Launches . | . . . Drone Recoveries . | . . . Exploration | -11 -10 -9 ------------- Run | Yrd Mat Mat Turns Passed 430 | 72 148 210 Spaces Moved 237 | 60 82 95 Core 23 | 22 1 . Treads . | . . . Legs 214 | 38 81 95 Wheels . | . . . Hover . | . . . Flight . | . . . Fastest Speed 50 | 50 120 120 Average Speed 138 | 96 122 178 Slowest Speed 200 | 120 200 190 Overloaded Moves . | . . . Propulsion Burnouts . | . . . Robots Hopped . | . . . Cave-ins Triggered . | . . . Exploration Rate (%) 14 | 4 29 10 Regions Visited 2 Branch Regions . Pre-discovered Areas . | . . . Known Exits Taken . | . . . Unknown Exits Taken 2 | 1 1 . Scrap Searched . | . . . Spaces Dug . | . . . Terrain Destroyed . | . . . Melee . | . . . Projectile . | . . . AOE . | . . . Terrain Rammed . | . . . Walls Destroyed . | . . . Machines Disabled . | . . . Actions | -11 -10 -9 --------- Run | Yrd Mat Mat Total 305 | 73 109 123 Wait 31 | . 13 18 Move 235 | 59 81 95 Hop . | . . . Pick Up 11 | 7 3 1 Fast Attach 9 | 5 2 2 Attach 3 | 1 . 2 Detach . | . . . Swap . | . . . Drop 1 | 1 . . Fire 15 | . 10 5 Melee . | . . . Ram . | . . . Kick . | . . . Crush . | . . . Escape Stasis . | . . . Rewire . | . . . Trap . | . . . Miscellaneous . | . . . Route ------- -11/Scrapyard -10/Materials (discovered 2 exits: *Mat / [*Min]) -9/Materials History --------- Turn | Location | Event 18 | -11/Scrapyard | Discovered new exit (range 15) 73 | -11/Scrapyard | Entered Materials 158 | -10/Materials | Discovered new exit (range 5) 177 | -10/Materials | Discovered new exit (range 16) 221 | -10/Materials | Entered another Materials area 221 | -9/Materials | Evolved 2 slots: Weapon x2 431 | -9/Materials | Self-destructed Last Messages --------------- 00356_ Current location identified: Materials 00381_ U-05 Engineer works on Electrolysis Chamber. 00388_ K-01 Serf collects debris. 00392_ U-05 Engineer works on Electrolysis Chamber. 00392_ K-01 Serf collects debris. 00393_ U-05 Engineer works on Electrolysis Chamber. 00398_ K-01 Serf collects debris. 00402_ U-05 Engineer works on Electrolysis Chamber. 00402_ K-01 Serf collects debris. 00404_ U-05 Engineer completes Electrolysis Chamber. 00407_ K-01 Serf collects debris. 00414_ Electrolysis Chamber comes online. 00415_ K-01 Serf collects debris. 00420_ Electrolysis Chamber disabled. 00423_ K-01 Serf collects debris. 00424_ O-16 Technician: "IFF HANDSHAKE FAILED. SECURING TERMINAL." 00425_ K-01 Serf collects debris. 00427_ Terminal disabled. 00428_ K-01 Serf cleans the Electrolysis Chamber. 00430_ Aluminum Leg destroyed. Map ----- +----------------------------------------------------+ | ?????????????????????????????????????????????????? | | ?????????????????????????????????????????????????? | | ?????????????????????????????????????????????????? | | ?????????????????????????????????????????????????? | | ?????????????????????????????????????????????????? | | ?????????????????????????????????????????????????? | | ?????????????????????????????????????????????????? | | ?????????????????????????????????????????????????? | | ?????????????????????????????????????????????????? | | ?????????????????????????????????????????????????? | | ???????????????? ???????????????????????????????? | | ???????????????? ???????????????????????????????? | | ???????????????# ???????????????????????????????? | | ???????????????# #??????????????????????????????? | | ???????????????# #???????????????"??????????????? | | ???????????????# #?????????????? ???????????????? | | ???????????????# #????????????? "??????????????? | | ???????????????# #???????????? ??????????????? | | ???????????????# #????######## ???????????????? | | ???????????????# ###### ???????????????? | | ???????????????# ????????????????? | | ???????????????# ??????????????? | | ???????????????# """ """ """ ""??????????????? | | ????????????#### """ """ """ ""??????????????? | | ????????????# """ """ "" """?????????????? | | ????????????# k @ g ????????? | | ????????????# o ga ????????? | | ????????????# ####"""T ""####u g ????????? | | ????????????# #??#########?????? ?????????? | | ????????????# #????????????????????? ?????????? | | ????????????# ########?????????????????????????? | | ????????????# # "T" #?????????????????????????? | | ????????????# # #?????????????????????????? | | ????????????# # #?????????????????????????? | | ????????????# + #?????????????????????????? | | ????????????# # #?????????????????????????? | | ????????????# # #?????????????????????????? | | ???????????## ########?????????????????????????? | | ############ #???????????????????????????????? | | #???????????????????????????????? | | #???????????????????????????????? | | #???????????????????????????????? | | ########+### #???????????????????????????????? | | ?????# ##### #???????????????????????????????? | | ?????# #???? #???????????????????????????????? | | ?????# #???? #???????????????????????????????? | | ?????# "" #???? #???????????????????????????????? | | ?????# S"" #???? #???????????????????????????????? | | ?????# "" #???? #???????????????????????????????? | | ?????# #???? #???????????????????????????????? | +----------------------------------------------------+ Best States ------------- Heat Dissipation 28 Energy Generation 10 Energy Capacity 250 Matter Stores 245 Matter Capacity 300 Sight Range 16 Terrain Scan Density 10 Evasion (%) 55 Targeting Accuracy 6 Item Schematics ----------------- None Robot Schematics ------------------ None Fabricated ------------ Nothing Alien Tech Used ----------------- None Achievements -------------- None Challenges ------------ None Game ------ Seed CobblerFrostWell Manual? 0 Play Time 00:08:29 Cumulative 181.2 hours Start 2024.11.27 @ 03:19:47 End 2024.11.27 @ 03:43:24 Sessions 1 Manual Loads 0 Difficulty Rogue Special Mode None Game No. 246 Rogue 246 Adventurer 0 Explorer 0 Win Type - Total 1 Types 1/0/0/0/0/0/0/0/0 Lore% 32 Gallery% 62 Achievement% 42 Wizard Run 0 Options --------- Layout 0 ASCII 0 Keyboard 0 Movement Mouse Keybinds 0 Fullscreen 1 Font 18/SmallcapsGlow Map View 76x50 Zoom Use 0% Tactical HUD 1 Map Filters NONE Filters NONE Steam 1 RUN: 40d094cd-5191-4a7e-8f94-0e3275a266a0